[Event "POL-chT 2 Liga 2019"]
[Site "Poronin"]
[Date "2019.09.15"]
[Round "9.33"]
[White "Pazdziora, Michal"]
[Black "Bardeli, Lukasz"]
[Result "0-1"]
[ECO "A48"]
[WhiteElo "2176"]
[BlackElo "2144"]
[Annotator "NA"]
[PlyCount "100"]
[EventDate "2019.09.07"]
[EventType "team-tourn"]
[EventCountry "POL"]
[SourceTitle "playchess.com"]
[Source "ChessBase"]
[SourceQuality "1"]
[TimeControl "40/5400+30:1800+30"]

1. d4 {[%emt 0:00:00]} Nf6 {[%emt 0:00:00]} 2. Nf3 {[%emt 0:00:00]} g6 {[%emt 0:00:00]} 3. Bf4 {[%emt 0:00:51]} Bg7 {[%emt 0:00:00]} 4. e3 {[%emt 0:00:18]} O-O {[%emt 0:00:00]} 5. Be2 {[%emt 0:00:34]} d6 {[%emt 0:00:31]} 6. h3 {[%emt 0:01:02]} b6 {[%emt 0:00:26]} 7. O-O {[%emt 0:01:47]} Bb7 {[%emt 0:05:43]} 8. c4 {[%emt 0:02:03]} Ne4 {[%emt 0:01:15]} 9. Nfd2 {[%emt 0:06:49]} e5 {[%emt 0:04:01]} 10. Nxe4 {[%emt 0:05:22]} exf4 {[%emt 0:01:54]} 11. Bf3 {[%emt 0:01:43]} d5 {[%emt 0:00:27]} 12. cxd5 {[%emt 0:04:15]} fxe3 {[%emt 0:00:10]} 13. fxe3 {[%emt 0:00:39]} Bxd5 {[%emt 0:07:29]} 14. Nbc3 {[%emt 0:02:02]} Bc6 {[%emt 0:00:12]} 15. Qb3 {[%emt 0:07:17]} Kh8 {[%emt 0:03:15]} 16. Rae1 {[%emt 0:02:47]} Nd7 {[%emt 0:10:35]} 17. Qc4 {[%emt 0:12:37]} Bb7 {[%emt 0:00:12]} 18. Nb5 {[%emt 0:12:33]} a6 {[%emt 0:07:21]} 19. Nbc3 {[%emt 0:11:30]} b5 {[%emt 0:02:45]} 20. Qe2 {[%emt 0:02:34]} Qe7 {[%emt 0:02:33]} 21. Nd2 {[%emt 0:03:15]} Bxf3 {[%emt 0:00:40]} 22. Qxf3 {[%emt 0:00:23]} Nb6 {[%emt 0:00:38]} 23. Nd5 {[%emt 0:06:16]} Nxd5 {[%emt 0:02:02]} 24. Qxd5 {[%emt 0:00:03]} Rad8 {[%emt 0:00:33]} 25. Qe4 {[%emt 0:00:58]} Qd6 {[%emt 0:04:48]} 26. Qf4 {[%emt 0:02:30]} Qxf4 {[%emt 0:02:56]} 27. Rxf4 {[%emt 0:00:18]} c5 {[%emt 0:00:07]} 28. Nb3 {[%emt 0:01:10]} cxd4 {[%emt 0:00:17]} 29. Nxd4 {[%emt 0:01:01]} Rfe8 {[%emt 0:03:39]} 30. Nf3 {[%emt 0:05:43]} Kg8 {[%emt 0:01:57]} 31. Rb4 {[%emt 0:01:33]} Rd3 {[%emt 0:02:06]} 32. Kf2 {[%emt 0:04:47]} Bf8 {[%emt 0:05:54]} 33. Rd4 {[%emt 0:00:32]} Rxd4 {[%emt 0:00:51]} 34. exd4 {[%emt 0:00:31]} Rxe1 {[%emt 0:00:58]} 35. Nxe1 {[%emt 0:00:08]} f6 {[%emt 0:00:39]} 36. Nd3 {[%emt 0:00:33]} Kf7 {[%emt 0:04:52]} 37. b4 {[%emt 0:00:23]} Ke6 {[%emt 0:02:32]} 38. Nc5+ {[%emt 0:00:35]} Kd5 {[%emt 0:00:22]} 39. Ke3 {[%emt 0:00:57]} Kc4 {[%emt 0:00:55]} 40. Nxa6 {[%emt 0:00:00]} f5 {[%emt 0:00:00]} 41. d5 {[%emt 0:03:06]} Bh6+ {[%emt 0:01:22]} 42. Ke2 {[%emt 0:00:13]} Kxd5 {[%emt 0:00:23]} 43. Kd3 {[%emt 0:00:05]} Bf4 {[%emt 0:00:29]} 44. Nc5 {[%emt 0:04:15]} Bd6 {[%emt 0:00:18]} 45. Nd7 {[%emt 0:00:50]} Ke6 {[%emt 0:00:50]} 46. Nb6 {[%emt 0:00:54]} Bxb4 {[%emt 0:00:35]} 47. Kd4 {[%emt 0:00:20]} Kd6 {[%emt 0:00:42]} 48. Nc8+ {[%emt 0:01:01]} Kc7 {[%emt 0:00:08]} 49. Na7 {[%emt 0:00:23]} Kb6 {[%emt 0:00:09]} 50. Nc8+ {[%emt 0:00:12]} Kb7 {[%emt 0:00:05]} 0-1

[Event "POL-chT 2 Liga 2019"]
[Site "Poronin"]
[Date "2019.09.15"]
[Round "9.34"]
[White "Butyrowski, Marcel"]
[Black "Niedbala, Bartlomiej"]
[Result "0-1"]
[ECO "A04"]
[WhiteElo "1873"]
[BlackElo "2145"]
[Annotator "NA"]
[PlyCount "106"]
[EventDate "2019.09.07"]
[EventType "team-tourn"]
[EventCountry "POL"]
[SourceTitle "playchess.com"]
[Source "ChessBase"]
[SourceQuality "1"]
[TimeControl "40/5400+30:1800+30"]

1. Nf3 {[%emt 0:00:00]} d6 {[%emt 0:00:19]} 2. d4 {[%emt 0:00:19]} f5 {[%emt 0:00:14]} 3. c4 {[%emt 0:00:48]} e6 {[%emt 0:02:13]} 4. Nc3 {[%emt 0:01:13]} Nf6 {[%emt 0:00:14]} 5. g3 {[%emt 0:01:51]} Be7 {[%emt 0:00:07]} 6. Bg2 {[%emt 0:00:15]} O-O {[%emt 0:00:02]} 7. Qc2 {[%emt 0:01:09]} a5 {[%emt 0:03:26]} 8. O-O {[%emt 0:02:38]} Nc6 {[%emt 0:00:58]} 9. a3 {[%emt 0:01:31]} e5 {[%emt 0:00:32]} 10. dxe5 {[%emt 0:00:23]} dxe5 {[%emt 0:00:01]} 11. Rd1 {[%emt 0:01:01]} Qe8 {[%emt 0:00:04]} 12. Nd5 {[%emt 0:00:40]} Bd8 {[%emt 0:02:28]} 13. Bg5 {[%emt 0:01:12]} Rf7 {[%emt 0:01:36]} 14. Rab1 {[%emt 0:08:45]} e4 {[%emt 0:04:37]} 15. Nd4 {[%emt 0:01:00]} Nxd5 {[%emt 0:03:15]} 16. Bxd8 {[%emt 0:01:45]} Ne3 {[%emt 0:02:28]} 17. fxe3 {[%emt 0:01:43]} Nxd8 {[%emt 0:01:03]} 18. b4 {[%emt 0:03:39]} h5 {[%emt 0:15:26]} 19. Rf1 {[%emt 0:04:48]} Nc6 {[%emt 0:09:07]} 20. Bh3 {[%emt 0:09:56]} g6 {[%emt 0:01:23]} 21. Nxc6 {[%emt 0:00:41]} Qxc6 {[%emt 0:00:31]} 22. Rbd1 {[%emt 0:00:44]} Be6 {[%emt 0:01:10]} 23. Rd4 {[%emt 0:01:19]} b5 {[%emt 0:11:24]} 24. c5 {[%emt 0:04:37]} a4 {[%emt 0:03:05]} 25. Qd2 {[%emt 0:04:47]} Kh7 {[%emt 0:04:02]} 26. Rd1 {[%emt 0:03:04]} Bb3 {[%emt 0:01:09]} 27. Rf1 {[%emt 0:01:29]} Raf8 {[%emt 0:01:35]} 28. Rd8 {[%emt 0:01:36]} Rxd8 {[%emt 0:03:07]} 29. Qxd8 {[%emt 0:00:10]} Qf6 {[%emt 0:00:08]} 30. Qd2 {[%emt 0:04:00]} Kg7 {[%emt 0:05:32]} 31. Bg2 {[%emt 0:00:26]} Qe6 {[%emt 0:02:34]} 32. Qe1 {[%emt 0:06:16]} Rd7 {[%emt 0:02:03]} 33. Qf2 {[%emt 0:00:33]} Qe5 {[%emt 0:01:37]} 34. h3 {[%emt 0:01:04]} Rf7 {[%emt 0:01:51]} 35. Rb1 {[%emt 0:01:11]} g5 {[%emt 0:01:18]} 36. Qe1 {[%emt 0:00:52]} Rd7 {[%emt 0:00:09]} 37. Kh1 {[%emt 0:00:56]} c6 {[%emt 0:00:42]} 38. Kg1 {[%emt 0:00:41]} Kg6 {[%emt 0:01:06]} 39. Kh1 {[%emt 0:01:14]} Kf7 {[%emt 0:02:18]} 40. Kg1 {[%emt 0:00:00]} Ke6 {[%emt 0:00:00]} 41. Kh1 {[%emt 0:02:53]} g4 {[%emt 0:02:15]} 42. h4 {[%emt 0:00:15]} Bc2 {[%emt 0:00:24]} 43. Rc1 {[%emt 0:00:39]} Qb2 {[%emt 0:00:05]} 44. Kh2 {[%emt 0:00:22]} Bb3 {[%emt 0:00:17]} 45. Rb1 {[%emt 0:01:59]} Qc2 {[%emt 0:01:44]} 46. Qf1 {[%emt 0:03:29]} Bc4 {[%emt 0:10:41]} 47. Re1 {[%emt 0:00:30]} Qc3 {[%emt 0:00:02]} 48. Qf2 {[%emt 0:00:31]} Qe5 {[%emt 0:00:26]} 49. Bf1 {[%emt 0:02:32]} Rd2 {[%emt 0:01:27]} 50. Rc1 {[%emt 0:03:42]} Ra2 {[%emt 0:01:06]} 51. Rd1 {[%emt 0:01:23]} Bd5 {[%emt 0:00:29]} 52. Qe1 {[%emt 0:03:13]} Rxa3 {[%emt 0:00:44]} 53. Qd2 {[%emt 0:00:33]} Qc3 {[%emt 0:00:25]} 0-1

[Event "POL-chT 2 Liga 2019"]
[Site "Poronin"]
[Date "2019.09.15"]
[Round "9.35"]
[White "Galuszka, Tomasz"]
[Black "Wojdak, Jan"]
[Result "1/2-1/2"]
[ECO "A06"]
[WhiteElo "2222"]
[BlackElo "1973"]
[Annotator "ChessBase"]
[PlyCount "32"]
[EventDate "2019.09.07"]
[EventType "team-tourn"]
[EventCountry "POL"]
[SourceTitle "playchess.com"]
[Source "ChessBase"]
[SourceQuality "1"]
[TimeControl "40/5400+30:1800+30"]

1. Nf3 {[%emt 0:00:00]} d5 {[%emt 0:00:00]} 2. g3 {[%emt 0:00:00]} c6 {[%emt 0:00:00]} 3. Bg2 {[%emt 0:00:00]} Bf5 {[%emt 0:00:01]} 4. O-O {[%emt 0:00:00]} e6 {[%emt 0:02:55]} 5. d3 {[%emt 0:00:26]} h6 {[%emt 0:00:28]} 6. c4 {[%emt 0:00:59]} Nf6 {[%emt 0:00:29]} 7. Nc3 {[%emt 0:03:59]} Nbd7 {[%emt 0:00:48]} 8. cxd5 {[%emt 0:01:39]} cxd5 {[%emt 0:00:53]} 9. Qb3 {[%emt 0:01:38]} Nc5 {[%emt 0:14:08]} 10. Qb5+ {[%emt 0:09:29]} Nfd7 {[%emt 0:03:10]} 11. d4 {[%emt 0:02:03]} a6 {[%emt 0:11:34]} 12. Qb4 {[%emt 0:00:09]} Nd3 {[%emt 0:09:49]} 13. Qxb7 {[%emt 0:01:48]} Rb8 {[%emt 0:12:02]} 14. Qxa6 {[%emt 0:05:41]} Nb4 {[%emt 0:00:41]} 15. Qa7 {[%emt 0:00:10]} Ra8 {[%emt 0:05:07]} 16. Qb7 {[%emt 0:00:24]} Rb8 {[%emt 0:00:27]} 1/2-1/2

[Event "POL-chT 2 Liga 2019"]
[Site "Poronin"]
[Date "2019.09.15"]
[Round "9.38"]
[White "Chojnacki, Slawomir"]
[Black "Kyc, Jerzy"]
[Result "0-1"]
[ECO "D02"]
[WhiteElo "2218"]
[BlackElo "2309"]
[Annotator "ChessBase"]
[PlyCount "58"]
[EventDate "2019.09.07"]
[EventType "team-tourn"]
[EventCountry "POL"]
[SourceTitle "playchess.com"]
[Source "ChessBase"]
[SourceQuality "1"]
[TimeControl "40/5400+30:1800+30"]

1. d4 {[%emt 0:00:00]} d5 {[%emt 0:00:00]} 2. Nf3 {[%emt 0:00:00]} Nf6 {[%emt 0:00:00]} 3. Bf4 {[%emt 0:00:00]} c5 {[%emt 0:00:39]} 4. e3 {[%emt 0:00:01]} Nc6 {[%emt 0:00:09]} 5. dxc5 {[%emt 0:02:19]} e6 {[%emt 0:01:10]} 6. Nbd2 {[%emt 0:00:28]} Bxc5 {[%emt 0:00:08]} 7. Be2 {[%emt 0:00:10]} O-O {[%emt 0:00:14]} 8. O-O {[%emt 0:00:08]} h6 {[%emt 0:02:59]} 9. h3 {[%emt 0:00:09]} Qe7 {[%emt 0:03:12]} 10. Bh2 {[%emt 0:01:26]} e5 {[%emt 0:00:50]} 11. c3 {[%emt 0:00:14]} Bb6 {[%emt 0:01:23]} 12. Qa4 {[%emt 0:01:33]} Bd7 {[%emt 0:04:51]} 13. Qh4 {[%emt 0:01:58]} d4 {[%emt 0:04:39]} 14. Nc4 {[%emt 0:06:45]} dxc3 {[%emt 0:05:21]} 15. Nxb6 {[%emt 0:00:46]} axb6 {[%emt 0:05:25]} 16. bxc3 {[%emt 0:00:21]} Ra3 {[%emt 0:15:02]} 17. Rfb1 {[%emt 0:00:10]} Rfa8 {[%emt 0:02:47]} 18. Rxb6 {[%emt 0:10:19]} Rxa2 {[%emt 0:02:55]} 19. Rxa2 {[%emt 0:00:42]} Rxa2 {[%emt 0:00:02]} 20. Bf1 {[%emt 0:00:24]} Ra1 {[%emt 0:10:13]} 21. Rxb7 {[%emt 0:14:18]} Qd6 {[%emt 0:04:26]} 22. Nd4 {[%emt 0:08:03]} Qd5 {[%emt 0:01:18]} 23. Nf3 {[%emt 0:08:43]} Qd3 {[%emt 0:02:48]} 24. Bxe5 {[%emt 0:00:24]} Qxf1+ {[%emt 0:00:33]} 25. Kh2 {[%emt 0:00:05]} Qh1+ {[%emt 0:00:51]} 26. Kg3 {[%emt 0:00:14]} Nxe5 {[%emt 0:00:40]} 27. Nxe5 {[%emt 0:01:42]} Rg1 {[%emt 0:00:15]} 28. Nxd7 {[%emt 0:00:45]} Qxg2+ {[%emt 0:00:12]} 29. Kf4 {[%emt 0:00:04]} Qe4# 0-1

[Event "POL-chT 2 Liga 2019"]
[Site "Poronin"]
[Date "2019.09.15"]
[Round "9.39"]
[White "Gesicki, Jacek"]
[Black "Najbar, Marcin"]
[Result "1-0"]
[ECO "B40"]
[WhiteElo "2234"]
[BlackElo "2246"]
[Annotator "NA"]
[PlyCount "68"]
[EventDate "2019.09.07"]
[EventType "team-tourn"]
[EventCountry "POL"]
[SourceTitle "playchess.com"]
[Source "ChessBase"]
[SourceQuality "1"]
[TimeControl "40/5400+30:1800+30"]

1. e4 {[%emt 0:00:00]} c5 {[%emt 0:00:00]} 2. Nf3 {[%emt 0:00:00]} e6 {[%emt 0:00:08]} 3. d4 {[%emt 0:01:51]} cxd4 {[%emt 0:00:08]} 4. Nxd4 {[%emt 0:00:08]} Qb6 {[%emt 0:00:59]} 5. Nb5 {[%emt 0:01:32]} Bc5 {[%emt 0:10:46]} 6. Be3 {[%emt 0:04:59]} Bxe3 {[%emt 0:02:20]} 7. fxe3 {[%emt 0:00:07]} Qxe3+ {[%emt 0:06:17]} 8. Be2 {[%emt 0:01:46]} Na6 {[%emt 0:00:45]} 9. Nd6+ {[%emt 0:03:25]} Ke7 {[%emt 0:01:59]} 10. Nc3 {[%emt 0:00:57]} Nf6 {[%emt 0:01:36]} 11. Rf1 {[%emt 0:03:48]} Nb4 {[%emt 0:12:20]} 12. Ncb5 {[%emt 0:23:06]} Qc5 {[%emt 0:08:50]} 13. c3 {[%emt 0:00:46]} a6 {[%emt 0:02:12]} 14. cxb4 {[%emt 0:10:42]} Qxb4+ {[%emt 0:00:47]} 15. Qd2 {[%emt 0:01:02]} Qxd2+ {[%emt 0:02:32]} 16. Kxd2 {[%emt 0:00:09]} axb5 $18 {[%emt 0:00:45]} 17. e5 {[%emt 0:00:08]} b6 {[%emt 0:20:17]} 18. Nxc8+ {[%emt 0:02:03]} Raxc8 {[%emt 0:01:31]} 19. exf6+ {[%emt 0:00:13]} gxf6 {[%emt 0:00:03]} 20. Bxb5 {[%emt 0:05:14]} Rhg8 {[%emt 0:00:09]} 21. g3 {[%emt 0:08:23]} Rg4 {[%emt 0:01:18]} 22. Rac1 {[%emt 0:14:32]} Rd4+ {[%emt 0:01:16]} 23. Bd3 {[%emt 0:00:11]} Ra8 {[%emt 0:04:06]} 24. a3 {[%emt 0:00:55]} e5 {[%emt 0:03:08]} 25. Ke3 {[%emt 0:00:32]} h5 {[%emt 0:01:29]} 26. Bf5 {[%emt 0:04:56]} Ra5 {[%emt 0:07:40]} 27. Rfd1 {[%emt 0:01:49]} Rxd1 {[%emt 0:03:04]} 28. Rxd1 {[%emt 0:00:04]} d5 {[%emt 0:00:07]} 29. Rc1 {[%emt 0:00:25]} Kd6 {[%emt 0:00:21]} 30. Rc8 {[%emt 0:00:50]} h4 {[%emt 0:03:18]} 31. Rd8+ {[%emt 0:02:55]} Kc6 {[%emt 0:00:31]} 32. gxh4 {[%emt 0:00:59]} d4+ {[%emt 0:01:38]} 33. Ke4 {[%emt 0:01:15]} d3 {[%emt 0:00:28]} 34. Kxd3 {[%emt 0:01:03]} Ra8 1-0

[Event "POL-chT 2 Liga 2019"]
[Site "Poronin"]
[Date "2019.09.15"]
[Round "9.40"]
[White "Malecki, Rafal"]
[Black "Sendera, Jaroslaw"]
[Result "0-1"]
[ECO "A05"]
[WhiteElo "2050"]
[BlackElo "2203"]
[Annotator "NA"]
[PlyCount "86"]
[EventDate "2019.09.07"]
[EventType "team-tourn"]
[EventCountry "POL"]
[SourceTitle "playchess.com"]
[Source "ChessBase"]
[SourceQuality "1"]
[TimeControl "40/5400+30:1800+30"]

1. Nf3 {[%emt 0:00:00]} Nf6 {[%emt 0:00:00]} 2. g3 {[%emt 0:00:00]} g6 {[%emt 0:00:00]} 3. Bg2 {[%emt 0:00:00]} Bg7 {[%emt 0:00:00]} 4. O-O {[%emt 0:00:00]} O-O {[%emt 0:00:05]} 5. d3 {[%emt 0:00:16]} d6 {[%emt 0:02:01]} 6. e4 {[%emt 0:00:49]} c5 {[%emt 0:00:17]} 7. a4 {[%emt 0:04:16]} Nc6 {[%emt 0:02:18]} 8. Nbd2 {[%emt 0:00:21]} Rb8 {[%emt 0:11:06]} 9. Nc4 {[%emt 0:04:59]} Bg4 {[%emt 0:19:35]} 10. h3 {[%emt 0:04:54]} Bxf3 {[%emt 0:00:06]} 11. Bxf3 {[%emt 0:03:33]} Nd7 {[%emt 0:01:20]} 12. Bg2 {[%emt 0:03:04]} a6 {[%emt 0:13:17]} 13. f4 {[%emt 0:08:50]} b5 {[%emt 0:01:14]} 14. axb5 {[%emt 0:00:21]} axb5 {[%emt 0:00:06]} 15. Ne3 {[%emt 0:00:51]} b4 {[%emt 0:07:57]} 16. e5 {[%emt 0:07:04]} Nd4 {[%emt 0:01:02]} 17. exd6 {[%emt 0:00:57]} e6 {[%emt 0:01:37]} 18. Nc4 {[%emt 0:15:47]} Nb6 {[%emt 0:00:31]} 19. Ra6 {[%emt 0:00:33]} Nxc4 {[%emt 0:02:59]} 20. dxc4 {[%emt 0:01:30]} Rb6 {[%emt 0:02:18]} 21. Rxb6 {[%emt 0:03:55]} Qxb6 {[%emt 0:00:04]} 22. d7 {[%emt 0:00:23]} Rd8 {[%emt 0:00:54]} 23. Qd3 {[%emt 0:02:37]} Rxd7 {[%emt 0:09:10]} 24. c3 {[%emt 0:01:11]} bxc3 {[%emt 0:00:11]} 25. bxc3 {[%emt 0:01:02]} Qb3 {[%emt 0:00:26]} 26. Be4 {[%emt 0:01:02]} Qxc3 {[%emt 0:00:28]} 27. Qxc3 {[%emt 0:12:47]} Ne2+ {[%emt 0:00:09]} 28. Kf2 {[%emt 0:03:21]} Nxc3 {[%emt 0:00:09]} 29. Bc2 {[%emt 0:01:07]} Bd4+ {[%emt 0:08:08]} 30. Kf3 {[%emt 0:01:03]} Ra7 {[%emt 0:06:58]} 31. g4 {[%emt 0:07:18]} Ra1 {[%emt 0:01:42]} 32. Bd3 {[%emt 0:01:04]} Ra2 {[%emt 0:01:52]} 33. Kg3 {[%emt 0:07:42]} f5 {[%emt 0:01:23]} 34. Kf3 {[%emt 0:00:34]} Kf7 {[%emt 0:00:21]} 35. g5 {[%emt 0:02:24]} Na4 {[%emt 0:02:36]} 36. h4 {[%emt 0:01:22]} Nb6 {[%emt 0:00:27]} 37. h5 {[%emt 0:00:41]} gxh5 38. Rh1 {[%emt 0:00:17]} Ra1 {[%emt 0:02:01]} 39. Be2 {[%emt 0:00:16]} Bb2 {[%emt 0:00:38]} 40. Bxb2 {[%emt 0:00:00]} Rxh1 {[%emt 0:00:00]} 41. Kg2 {[%emt 0:00:25]} Re1 {[%emt 0:11:25]} 42. Bxh5+ {[%emt 0:01:16]} Kf8 {[%emt 0:01:14]} 43. Ba3 {[%emt 0:03:55]} Na4 {[%emt 0:00:27]} 0-1

[Event "POL-chT 2 Liga 2019"]
[Site "Poronin"]
[Date "2019.09.15"]
[Round "9.41"]
[White "Kopacz, Grzegorz"]
[Black "Szajda, Marcin"]
[Result "1/2-1/2"]
[ECO "A13"]
[WhiteElo "2111"]
[BlackElo "1904"]
[Annotator "ChessBase"]
[PlyCount "50"]
[EventDate "2019.09.07"]
[EventType "team-tourn"]
[EventCountry "POL"]
[SourceTitle "playchess.com"]
[Source "ChessBase"]
[SourceQuality "1"]
[TimeControl "40/5400+30:1800+30"]

1. c4 {[%emt 0:00:00]} Nf6 {[%emt 0:00:00]} 2. Nf3 {[%emt 0:00:00]} e6 {[%emt 0:00:00]} 3. g3 {[%emt 0:00:27]} d5 {[%emt 0:00:00]} 4. Bg2 {[%emt 0:00:23]} dxc4 {[%emt 0:00:38]} 5. Qa4+ {[%emt 0:00:39]} Nbd7 {[%emt 0:00:20]} 6. O-O {[%emt 0:01:39]} a6 {[%emt 0:00:24]} 7. Qxc4 {[%emt 0:00:54]} b5 {[%emt 0:01:19]} 8. Qc2 {[%emt 0:01:47]} Bb7 {[%emt 0:00:42]} 9. d3 {[%emt 0:03:47]} c5 {[%emt 0:04:06]} 10. a4 {[%emt 0:07:13]} Be7 {[%emt 0:02:14]} 11. Nc3 {[%emt 0:04:53]} Bc6 {[%emt 0:05:13]} 12. Bf4 {[%emt 0:09:47]} O-O {[%emt 0:00:39]} 13. Rfd1 {[%emt 0:06:48]} Qb6 {[%emt 0:02:21]} 14. h3 {[%emt 0:04:05]} h6 {[%emt 0:02:50]} 15. Be3 {[%emt 0:05:43]} Qb7 {[%emt 0:02:50]} 16. axb5 {[%emt 0:04:32]} axb5 {[%emt 0:00:11]} 17. Rxa8 {[%emt 0:01:28]} Rxa8 {[%emt 0:00:20]} 18. Rc1 {[%emt 0:00:29]} Nd5 {[%emt 0:14:16]} 19. Bd2 {[%emt 0:07:14]} Nb4 {[%emt 0:10:44]} 20. Qb3 {[%emt 0:03:24]} Ne5 {[%emt 0:08:52]} 21. Nxe5 {[%emt 0:09:52]} Bxg2 {[%emt 0:00:14]} 22. Kh2 {[%emt 0:00:13]} Bd6 {[%emt 0:14:05]} 23. f3 {[%emt 0:02:50]} Bxe5 {[%emt 0:05:20]} 24. Kxg2 {[%emt 0:00:10]} Bxc3 {[%emt 0:10:32]} 25. bxc3 {[%emt 0:06:05]} Nc6 {[%emt 0:00:38]} 1/2-1/2

[Event "POL-chT 2 Liga 2019"]
[Site "Poronin"]
[Date "2019.09.15"]
[Round "9.42"]
[White "Chmiel, Dominika"]
[Black "Trybowska, Barbara"]
[Result "1/2-1/2"]
[ECO "B90"]
[WhiteElo "2075"]
[BlackElo "1689"]
[Annotator "NA"]
[PlyCount "77"]
[EventDate "2019.09.07"]
[EventType "team-tourn"]
[EventCountry "POL"]
[SourceTitle "playchess.com"]
[Source "ChessBase"]
[SourceQuality "1"]
[TimeControl "40/5400+30:1800+30"]

1. e4 {[%emt 0:00:00]} c5 {[%emt 0:00:00]} 2. Nf3 {[%emt 0:00:00]} d6 {[%emt 0:00:00]} 3. d4 {[%emt 0:00:00]} cxd4 {[%emt 0:00:00]} 4. Nxd4 {[%emt 0:00:02]} Nf6 {[%emt 0:00:00]} 5. Nc3 {[%emt 0:00:13]} a6 {[%emt 0:00:01]} 6. Bc4 {[%emt 0:03:37]} e6 {[%emt 0:00:44]} 7. f3 {[%emt 0:00:22]} Be7 {[%emt 0:00:20]} 8. Be3 {[%emt 0:00:09]} b5 {[%emt 0:00:46]} 9. Bb3 {[%emt 0:00:16]} O-O {[%emt 0:04:18]} 10. Qd2 {[%emt 0:00:39]} Bd7 {[%emt 0:06:35]} 11. g4 {[%emt 0:00:56]} Nc6 {[%emt 0:01:03]} 12. O-O-O {[%emt 0:13:33]} Rc8 {[%emt 0:16:14]} 13. g5 {[%emt 0:02:56]} Nh5 {[%emt 0:01:38]} 14. Rhg1 {[%emt 0:00:06]} g6 {[%emt 0:05:51]} 15. f4 {[%emt 0:03:17]} Nxd4 {[%emt 0:09:50]} 16. Bxd4 {[%emt 0:00:40]} a5 {[%emt 0:00:36]} 17. a3 {[%emt 0:04:42]} b4 {[%emt 0:08:20]} 18. Na4 {[%emt 0:18:54]} Bxa4 {[%emt 0:07:49]} 19. Bxa4 {[%emt 0:00:11]} bxa3 {[%emt 0:00:20]} 20. bxa3 {[%emt 0:00:18]} d5 {[%emt 0:03:48]} 21. Bb2 {[%emt 0:07:54]} Qb6 {[%emt 0:08:31]} 22. exd5 {[%emt 0:18:52]} Rb8 {[%emt 0:05:53]} 23. Qc3 {[%emt 0:10:15]} f6 {[%emt 0:00:20]} 24. Bd7 {[%emt 0:08:51]} Nxf4 {[%emt 0:01:42]} 25. Rge1 {[%emt 0:00:15]} e5 {[%emt 0:04:28]} 26. d6 {[%emt 0:02:33]} Bxd6 {[%emt 0:00:55]} 27. Qb3+ {[%emt 0:01:47]} Qxb3 {[%emt 0:02:10]} 28. cxb3 {[%emt 0:00:05]} Be7 {[%emt 0:00:21]} 29. gxf6 {[%emt 0:00:21]} Bxf6 {[%emt 0:00:23]} 30. Ba4 {[%emt 0:00:43]} Rfd8 {[%emt 0:01:45]} 31. Rxd8+ {[%emt 0:02:15]} Rxd8 {[%emt 0:00:05]} 32. Bb5 {[%emt 0:00:12]} Bg5 {[%emt 0:05:03]} 33. Kc2 {[%emt 0:00:48]} Ng2 {[%emt 0:01:21]} 34. Bc4+ {[%emt 0:00:14]} Kf8 {[%emt 0:00:52]} 35. Bxe5 {[%emt 0:00:49]} Ne3+ {[%emt 0:00:33]} 36. Kc3 {[%emt 0:00:35]} Nd1+ {[%emt 0:00:26]} 37. Kc2 {[%emt 0:00:16]} Ne3+ {[%emt 0:00:46]} 38. Kc3 {[%emt 0:00:22]} Nd1+ {[%emt 0:00:04]} 39. Kc2 {[%emt 0:00:04]} 1/2-1/2

[Event "POL-chT 2 Liga 2019"]
[Site "Poronin"]
[Date "2019.09.15"]
[Round "9.43"]
[White "Sieciechowicz, Marcin"]
[Black "Tomczak, Rafal"]
[Result "1/2-1/2"]
[ECO "A40"]
[WhiteElo "2364"]
[BlackElo "2320"]
[Annotator "NA"]
[PlyCount "104"]
[EventDate "2019.09.07"]
[EventType "team-tourn"]
[EventCountry "POL"]
[SourceTitle "playchess.com"]
[Source "ChessBase"]
[SourceQuality "1"]
[TimeControl "40/5400+30:1800+30"]

1. d4 {[%emt 0:00:00]} g6 {[%emt 0:00:00]} 2. c4 {[%emt 0:00:21]} Bg7 {[%emt 0:00:00]} 3. e4 {[%emt 0:00:21]} d6 {[%emt 0:00:00]} 4. Nc3 {[%emt 0:00:21]} c6 {[%emt 0:02:50]} 5. Be3 {[%emt 0:02:33]} e5 {[%emt 0:00:39]} 6. dxe5 {[%emt 0:02:25] A42: Modern Defence: Averbakh Variation} (6. Nge2 Nf6 7. f3 Nbd7 8. Qd2 O-O 9. d5 cxd5 10. cxd5 a6 11. g4 h5 12. g5 Nh7 13. Nc1 f6 14. gxf6 Bxf6 15. Rg1 Bh4+ 16. Kd1 g5 17. Nd3 Kh8 18. Be2 Rf7 19. Rc1 Ndf8 20. Na4 {1-0 (43) Amin,B (2709)-Jovanovic,Z (2537) Zagreb 2018}) 6... dxe5 {[%emt 0:01:05]} 7. Qxd8+ {[%emt 0:00:06]} Kxd8 {[%emt 0:00:06]} 8. O-O-O+ {[%emt 0:00:05]} Ke8 {[%emt 0:02:44]} 9. c5 $146 {[%emt 0:04:56]} ({Predecessor:} 9. g3 Be6 10. f4 Nd7 11. Kc2 Ngf6 12. Nf3 Ng4 13. Bg1 Bh6 14. h3 Ngf6 15. fxe5 {½-½ (48) Arbakov,V (2575)-Titov,G (2500) Tiraspol 1994}) 9... Be6 {[%emt 0:01:12]} 10. Nf3 {[%emt 0:01:56]} h6 {[%emt 0:00:37]} 11. Nd2 {[%emt 0:03:43]} Nd7 {[%emt 0:01:47]} 12. Nc4 {[%emt 0:04:21]} Kd8 {[%emt 0:12:35]} 13. b4 {[%emt 0:08:14]} Ne7 {[%emt 0:03:21]} 14. b5 {[%emt 0:06:02]} Bf6 {[%emt 0:04:17]} 15. Be2 {[%emt 0:10:50]} Nc8 {[%emt 0:03:36]} 16. Na5 {[%emt 0:10:03]} Kc7 {[%emt 0:01:59]} 17. Nxb7 {[%emt 0:00:52]} Kxb7 {[%emt 0:00:32]} 18. bxc6+ {[%emt 0:00:07]} Kxc6 {[%emt 0:00:09]} 19. Bb5+ {[%emt 0:00:07]} Kc7 {[%emt 0:00:12]} 20. Bxd7 {[%emt 0:00:35]} Bxd7 {[%emt 0:04:54]} 21. Nd5+ {[%emt 0:00:15]} Kc6 {[%emt 0:00:08]} 22. Nxf6 {[%emt 0:00:05]} Be6 {[%emt 0:00:04]} 23. Rd2 {[%emt 0:01:11]} Rb8 {[%emt 0:01:03]} 24. Rhd1 {[%emt 0:01:20]} Rb4 {[%emt 0:01:17]} 25. f3 {[%emt 0:02:27]} h5 {[%emt 0:03:14]} 26. Bf2 {[%emt 0:02:40]} h4 {[%emt 0:02:18]} 27. Nd5 {[%emt 0:01:48]} Ra4 {[%emt 0:01:31]} 28. Rb2 {[%emt 0:00:43]} h3 {[%emt 0:00:28]} 29. g4 {[%emt 0:01:04]} f5 {[%emt 0:00:15]} 30. Nb4+ {[%emt 0:02:20]} Kc7 {[%emt 0:02:15]} 31. gxf5 $18 {[%emt 0:01:20]} gxf5 {[%emt 0:00:05]} 32. exf5 {[%emt 0:00:27]} Bxf5 {[%emt 0:00:23]} 33. Nd5+ {[%emt 0:00:29]} Kc6 {[%emt 0:00:24]} 34. Nb4+ {[%emt 0:00:10]} Kc7 {[%emt 0:02:45]} 35. Bg3 {[%emt 0:00:29]} Re8 {[%emt 0:00:06]} 36. Re1 {[%emt 0:00:53]} Re6 {[%emt 0:03:17]} 37. Rxe5 {[%emt 0:04:14]} Rxe5 {[%emt 0:00:47]} 38. Bxe5+ {[%emt 0:00:01]} Kd7 {[%emt 0:00:08]} 39. f4 {[%emt 0:01:25]} a5 {[%emt 0:02:38]} 40. Rd2+ {[%emt 0:00:00]} Ke8 {[%emt 0:00:00]} 41. Na6 {[%emt 0:04:09]} Ne7 {[%emt 0:04:59]} 42. Bd6 {[%emt 0:02:57]} Nc6 {[%emt 0:00:57]} 43. Nc7+ {[%emt 0:10:30]} Kf7 {[%emt 0:03:18]} 44. Kb2 {[%emt 0:04:55]} Re4 {[%emt 0:06:28]} 45. Nd5 {[%emt 0:11:02]} Re1 {[%emt 0:00:55]} 46. Nc3 {[%emt 0:06:34]} Rg1 {[%emt 0:01:55]} 47. a3 {[%emt 0:12:54]} Rg2 {[%emt 0:02:40]} 48. Rxg2 {[%emt 0:02:10]} hxg2 {[%emt 0:00:08]} 49. Ne2 {[%emt 0:00:01]} Nd4 {[%emt 0:02:23]} 50. Ng1 {[%emt 0:00:02]} Ke6 {[%emt 0:01:42]} 51. Be5 {[%emt 0:04:08]} Kd5 {[%emt 0:00:54]} 52. Kc3 {[%emt 0:00:34]} Nc6 {Kd4+} 1/2-1/2